{"text_format":"3","workbook":"xlsx","n_sheets":2,"sheets":["Start","Helgdagsbudget planerare"],"not_rendered":{"defined_names":1},"read":"whole","date_system":"1900"}

{"sheet":"Start","index":0,"n_rows":4,"n_cols":2,"rows_kept":4}
[null,"Så här använder du mallen"]
[null,"Håll koll på dina utgifter med den här julbudgetplaneringen."]
[null,"Börja med att ange Budget och Faktiska utgifter i varje kategoritabell."]
[null,"Helgdagsbudget, Totalt faktiska utgifteroch Skillnad beräknas automatiskt åt dig."]

{"sheet":"Helgdagsbudget planerare","index":1,"n_rows":36,"n_cols":14,"rows_kept":36,"merged":[[0,2,5,7],[2,10,2,11],[8,2,8,5],[8,10,8,13],[18,2,18,5],[18,10,18,13],[29,2,29,5],[29,10,29,13]]}
[null,null,"Helgdagsbudget \nplanerare"]
[]
[{"$nulls":10},"JULBUDGET",null,null,{"$f":"SUM(Gåvor[Budget],Förpackningar[Budget],(Resor[Budget],(Måltider[Budget],(Underhållning[Budget],Övrigt[Budget]))))","v":{"v":750,"d":"750.00 kr"}}]
[{"$nulls":10},"FAKTISKA UTGIFTER",null,null,{"$f":"SUM((Gåvor[Faktisk],(Förpackningar[Faktisk],(Resor[Faktisk],(Måltider[Faktisk],(Underhållning[Faktisk],(Övrigt[Faktisk])))))))","v":{"v":820,"d":"820.00 kr"}}]
[]
[{"$nulls":10},"SKILLNAD (över/under budget)",null,null,{"$f":"SUM(N3-N4)","v":{"v":-70,"d":"-70.00 kr"}}]
[]
[]
[null,null,"GÅVOR",{"$nulls":7},"JULMAT"]
[null,null,"Vara","Budget","Faktisk","Skillnad",{"$nulls":4},"Vara","Budget","Faktisk","Skillnad"]
[null,null,"Familj",{"v":500,"d":"500.00 kr"},{"v":495,"d":"495.00 kr"},{"$f":"Gåvor[[#This Row],[Budget]]-Gåvor[[#This Row],[Faktisk]]","v":{"v":5,"d":"5.00 kr"}},{"$nulls":4},"Matvaror",null,null,{"$f":"Måltider[[#This Row],[Budget]]-Måltider[[#This Row],[Faktisk]]","v":{"v":0,"d":"0.00 kr"}}]
[null,null,"Vänner",{"v":250,"d":"250.00 kr"},{"v":325,"d":"325.00 kr"},{"$f":"Gåvor[[#This Row],[Budget]]-Gåvor[[#This Row],[Faktisk]]","v":{"v":-75,"d":"-75.00 kr"}},{"$nulls":4},"Dryck",null,null,{"$f":"Måltider[[#This Row],[Budget]]-Måltider[[#This Row],[Faktisk]]","v":{"v":0,"d":"0.00 kr"}}]
[null,null,"Kollegor",null,null,{"$f":"Gåvor[[#This Row],[Budget]]-Gåvor[[#This Row],[Faktisk]]","v":{"v":0,"d":"0.00 kr"}},{"$nulls":4},"Dekorationer",null,null,{"$f":"Måltider[[#This Row],[Budget]]-Måltider[[#This Row],[Faktisk]]","v":{"v":0,"d":"0.00 kr"}}]
[null,null,"Lärare, förskollärare, barnvakter osv.",null,null,{"$f":"Gåvor[[#This Row],[Budget]]-Gåvor[[#This Row],[Faktisk]]","v":{"v":0,"d":"0.00 kr"}},{"$nulls":4},"Övrigt (tryck på tabb i den sista kolumnen i den här raden för att lägga till rad)",null,null,{"$f":"Måltider[[#This Row],[Budget]]-Måltider[[#This Row],[Faktisk]]","v":{"v":0,"d":"0.00 kr"}}]
[null,null,"Välgörenhetsdonationer",null,null,{"$f":"Gåvor[[#This Row],[Budget]]-Gåvor[[#This Row],[Faktisk]]","v":{"v":0,"d":"0.00 kr"}},{"$nulls":7},{"$f":"Måltider[[#This Row],[Budget]]-Måltider[[#This Row],[Faktisk]]","v":{"v":0,"d":"0.00 kr"}}]
[null,null,"Övrigt (tryck på tabb i den sista kolumnen i den här raden för att lägga till rad)",null,null,{"$f":"Gåvor[[#This Row],[Budget]]-Gåvor[[#This Row],[Faktisk]]","v":{"v":0,"d":"0.00 kr"}}]
[null,null,"Summa",{"$f":"SUBTOTAL(109,Gåvor[Budget])","v":{"v":750,"d":"750.00 kr"}},{"$f":"SUBTOTAL(109,Gåvor[Faktisk])","v":{"v":820,"d":"820.00 kr"}},{"$f":"SUBTOTAL(109,Gåvor[Skillnad])","v":{"v":-70,"d":"-70.00 kr"}},{"$nulls":4},"Summa",{"$f":"SUBTOTAL(109,Måltider[Budget])","v":{"v":0,"d":"0.00 kr"}},{"$f":"SUBTOTAL(109,Måltider[Faktisk])","v":{"v":0,"d":"0.00 kr"}},{"$f":"SUBTOTAL(109,Måltider[Skillnad])","v":{"v":0,"d":"0.00 kr"}}]
[]
[null,null,"FÖRPACKNING",{"$nulls":7},"UNDERHÅLLNING"]
[null,null,"Vara","Budget","Faktisk","Skillnad",{"$nulls":4},"Vara","Budget","Faktisk","Skillnad"]
[null,null,"Presentpapper",null,null,{"$f":"Förpackningar[[#This Row],[Budget]]-Förpackningar[[#This Row],[Faktisk]]","v":{"v":0,"d":"0.00 kr"}},{"$nulls":4},"Festhjälp (bartender, cateringfirma, städning osv.)",null,null,{"$f":"Underhållning[[#This Row],[Budget]]-Underhållning[[#This Row],[Faktisk]]","v":{"v":0,"d":"0.00 kr"}}]
[null,null,"Etiketter",null,null,{"$f":"Förpackningar[[#This Row],[Budget]]-Förpackningar[[#This Row],[Faktisk]]","v":{"v":0,"d":"0.00 kr"}},{"$nulls":4},"Dekorationer",null,null,{"$f":"Underhållning[[#This Row],[Budget]]-Underhållning[[#This Row],[Faktisk]]","v":{"v":0,"d":"0.00 kr"}}]
[null,null,"Material (presentband, tejp osv.)",null,null,{"$f":"Förpackningar[[#This Row],[Budget]]-Förpackningar[[#This Row],[Faktisk]]","v":{"v":0,"d":"0.00 kr"}},{"$nulls":4},"Mat och dryck",null,null,{"$f":"Underhållning[[#This Row],[Budget]]-Underhållning[[#This Row],[Faktisk]]","v":{"v":0,"d":"0.00 kr"}}]
[null,null,"Askar",null,null,{"$f":"Förpackningar[[#This Row],[Budget]]-Förpackningar[[#This Row],[Faktisk]]","v":{"v":0,"d":"0.00 kr"}},{"$nulls":4},"Kläder",null,null,{"$f":"Underhållning[[#This Row],[Budget]]-Underhållning[[#This Row],[Faktisk]]","v":{"v":0,"d":"0.00 kr"}}]
[null,null,"Porto",null,null,{"$f":"Förpackningar[[#This Row],[Budget]]-Förpackningar[[#This Row],[Faktisk]]","v":{"v":0,"d":"0.00 kr"}},{"$nulls":4},"Biljetter",null,null,{"$f":"Underhållning[[#This Row],[Budget]]-Underhållning[[#This Row],[Faktisk]]","v":{"v":0,"d":"0.00 kr"}}]
[null,null,"Övrigt (tryck på tabb i den sista kolumnen i den här raden för att lägga till rad)",null,null,{"$f":"Förpackningar[[#This Row],[Budget]]-Förpackningar[[#This Row],[Faktisk]]","v":{"v":0,"d":"0.00 kr"}},{"$nulls":4},"Middagar ute",null,null,{"$f":"Underhållning[[#This Row],[Budget]]-Underhållning[[#This Row],[Faktisk]]","v":{"v":0,"d":"0.00 kr"}}]
[{"$nulls":10},"Övrigt (tryck på tabb i den sista kolumnen i den här raden för att lägga till rad)",null,null,{"$f":"Underhållning[[#This Row],[Budget]]-Underhållning[[#This Row],[Faktisk]]","v":{"v":0,"d":"0.00 kr"}}]
[null,null,"Summa",{"$f":"SUBTOTAL(109,Förpackningar[Budget])","v":{"v":0,"d":"0.00 kr"}},{"$f":"SUBTOTAL(109,Förpackningar[Faktisk])","v":{"v":0,"d":"0.00 kr"}},{"$f":"SUBTOTAL(109,Förpackningar[Skillnad])","v":{"v":0,"d":"0.00 kr"}},{"$nulls":4},"Summa",{"$f":"SUBTOTAL(109,Underhållning[Budget])","v":{"v":0,"d":"0.00 kr"}},{"$f":"SUBTOTAL(109,Underhållning[Faktisk])","v":{"v":0,"d":"0.00 kr"}},{"$f":"SUBTOTAL(109,Underhållning[Skillnad])","v":{"v":0,"d":"0.00 kr"}}]
[]
[null,null,"RESOR",{"$nulls":7},"ÖVRIGT"]
[null,null,"Vara","Budget","Faktisk","Skillnad",{"$nulls":4},"Vara","Budget","Faktisk","Skillnad"]
[null,null,"Flygbiljett",null,null,{"$f":"Resor[[#This Row],[Budget]]-Resor[[#This Row],[Faktisk]]","v":{"v":0,"d":"0.00 kr"}},{"$nulls":4},"Julfoton",null,null,{"$f":"Övrigt[[#This Row],[Budget]]-Övrigt[[#This Row],[Faktisk]]","v":{"v":0,"d":"0.00 kr"}}]
[null,null,"Boende",null,null,{"$f":"Resor[[#This Row],[Budget]]-Resor[[#This Row],[Faktisk]]","v":{"v":0,"d":"0.00 kr"}},{"$nulls":4},"Bensin ",null,null,{"$f":"Övrigt[[#This Row],[Budget]]-Övrigt[[#This Row],[Faktisk]]","v":{"v":0,"d":"0.00 kr"}}]
[null,null,"Transport",null,null,{"$f":"Resor[[#This Row],[Budget]]-Resor[[#This Row],[Faktisk]]","v":{"v":0,"d":"0.00 kr"}},{"$nulls":4},"Övrigt (tryck på tabb i den sista kolumnen i den här raden för att lägga till rad)",null,null,{"$f":"Övrigt[[#This Row],[Budget]]-Övrigt[[#This Row],[Faktisk]]","v":{"v":0,"d":"0.00 kr"}}]
[null,null,"Övrigt (tryck på tabb i den sista kolumnen i den här raden för att lägga till rad)",null,null,{"$f":"Resor[[#This Row],[Budget]]-Resor[[#This Row],[Faktisk]]","v":{"v":0,"d":"0.00 kr"}}]
[null,null,"Summa",{"$f":"SUBTOTAL(109,Resor[Budget])","v":{"v":0,"d":"0.00 kr"}},{"$f":"SUBTOTAL(109,Resor[Faktisk])","v":{"v":0,"d":"0.00 kr"}},{"$f":"SUBTOTAL(109,Resor[Skillnad])","v":{"v":0,"d":"0.00 kr"}},{"$nulls":4},"Summa",{"$f":"SUBTOTAL(109,Övrigt[Budget])","v":{"v":0,"d":"0.00 kr"}},{"$f":"SUBTOTAL(109,Övrigt[Faktisk])","v":{"v":0,"d":"0.00 kr"}},{"$f":"SUBTOTAL(109,Övrigt[Skillnad])","v":{"v":0,"d":"0.00 kr"}}]